[Event "EYCC Open-U14 2019"]
[Site "Bratislava"]
[Date "2019.08.07"]
[Round "6.46"]
[White "Velkoski, Stojan"]
[Black "Adamia, Jaba"]
[Result "1-0"]
[ECO "B43"]
[WhiteElo "1389"]
[BlackElo "1819"]
[Annotator "NA"]
[PlyCount "113"]
[EventDate "2019.08.02"]
[EventType "swiss"]
[EventCountry "SVK"]
[SourceTitle "playchess.com"]
[Source "ChessBase"]
[SourceQuality "1"]
[TimeControl "40/5400+30:1800+30"]

1. e4 {[%emt 0:00:00]} c5 {[%emt 0:00:00]} 2. Nc3 {[%emt 0:00:00]} e6 {[%emt 0:01:02]} 3. Nf3 {[%emt 0:00:00]} a6 {[%emt 0:00:37]} 4. d4 {[%emt 0:00:00]} cxd4 {[%emt 0:00:07]} 5. Nxd4 {[%emt 0:00:00]} Qc7 {[%emt 0:00:10]} 6. Bd3 {[%emt 0:00:00]} Nf6 {[%emt 0:01:45]} 7. O-O {[%emt 0:00:11]} d6 {[%emt 0:03:04]} 8. Kh1 {[%emt 0:00:40]} g6 {[%emt 0:09:23]} 9. Qe2 {[%emt 0:02:24]} Bg7 {[%emt 0:01:17]} 10. Bd2 {[%emt 0:02:13]} Nfd7 {[%emt 0:06:37]} 11. Nb3 {[%emt 0:01:00]} O-O {[%emt 0:01:41]} 12. f4 {[%emt 0:06:23]} Nc6 {[%emt 0:02:47]} 13. Nd1 {[%emt 0:05:14]} b5 {[%emt 0:11:40]} 14. c3 {[%emt 0:03:14]} Bb7 {[%emt 0:15:41]} 15. Ne3 {[%emt 0:06:11]} Rae8 {[%emt 0:06:08]} 16. a4 {[%emt 0:04:25]} bxa4 {[%emt 0:20:26]} 17. Rxa4 {[%emt 0:00:08]} Nf6 {[%emt 0:01:52]} 18. Ng4 {[%emt 0:07:30]} Nxg4 {[%emt 0:01:43]} 19. Qxg4 {[%emt 0:00:13]} Qb6 {[%emt 0:00:38]} 20. Qd1 {[%emt 0:03:29]} f5 {[%emt 0:01:55]} 21. exf5 {[%emt 0:00:41]} gxf5 {[%emt 0:00:07]} 22. Re1 {[%emt 0:05:29]} Ne7 {[%emt 0:07:49]} 23. Ra3 {[%emt 0:02:36]} Rf6 {[%emt 0:02:51]} 24. Be3 {[%emt 0:00:51]} Qc6 {[%emt 0:01:39]} 25. Qe2 {[%emt 0:00:17]} Rg6 {[%emt 0:00:28]} 26. Rg1 {[%emt 0:00:26]} Qc7 {[%emt 0:00:42]} 27. Na5 {[%emt 0:01:00]} Ba8 {[%emt 0:00:17]} 28. Bxa6 {[%emt 0:00:36]} Nd5 {[%emt 0:00:13]} 29. Bc1 {[%emt 0:00:40]} e5 {[%emt 0:00:17]} 30. Qc4 {[%emt 0:01:36]} Qf7 {[%emt 0:00:53]} 31. Bb5 {[%emt 0:00:38]} Rf8 {[%emt 0:00:43]} 32. Bc6 {[%emt 0:00:23]} Bxc6 {[%emt 0:00:52]} 33. Nxc6 {[%emt 0:00:41]} exf4 {[%emt 0:00:30]} 34. Qxd5 {[%emt 0:00:09]} Qxd5 {[%emt 0:00:22]} 35. Ne7+ {[%emt 0:00:06]} Kh8 {[%emt 0:00:12]} 36. Nxd5 {[%emt 0:00:05]} Be5 {[%emt 0:00:20]} 37. Bxf4 {[%emt 0:00:16]} Rg4 {[%emt 0:00:10]} 38. Bxe5+ {[%emt 0:00:16]} dxe5 {[%emt 0:00:03]} 39. Rga1 {[%emt 0:01:20]} f4 {[%emt 0:00:27]} 40. Ra8 {[%emt 0:00:00]} Rxa8 {[%emt 0:00:00]} 41. Rxa8+ Kg7 {[%emt 0:00:09]} 42. Ra7+ {[%emt 0:01:05]} Kg6 {[%emt 0:00:07]} 43. b4 {[%emt 0:01:22]} e4 {[%emt 0:00:04]} 44. Ra2 {[%emt 0:00:27]} Kf5 {[%emt 0:00:08]} 45. b5 {[%emt 0:00:52]} Rg7 {[%emt 0:00:10]} 46. b6 {[%emt 0:00:10]} e3 {[%emt 0:00:06]} 47. g3 {[%emt 0:01:32]} f3 {[%emt 0:00:36]} 48. Nxe3+ {[%emt 0:00:15]} Ke4 {[%emt 0:00:08]} 49. Nf1 {[%emt 0:00:11]} Kd3 {[%emt 0:00:28]} 50. Ra7 {[%emt 0:00:49]} Rg6 {[%emt 0:00:10]} 51. Rd7+ {[%emt 0:01:18]} Kxc3 {[%emt 0:00:35]} 52. b7 {[%emt 0:00:11]} Rb6 {[%emt 0:00:04]} 53. Kg1 {[%emt 0:00:29]} Rb2 {[%emt 0:00:07]} 54. Rxh7 {[%emt 0:01:59]} Kd3 {[%emt 0:00:11]} 55. Re7 {[%emt 0:00:15]} Rg2+ {[%emt 0:00:21]} 56. Kh1 {[%emt 0:00:25]} Rb2 {[%emt 0:00:04]} 57. Re3+ {[%emt 0:00:18]} 1-0

[Event "EYCC Open-U14 2019"]
[Site "Bratislava"]
[Date "2019.08.07"]
[Round "6.47"]
[White "Sosovicka, Jakub"]
[Black "Maldonado Mena, German"]
[Result "0-1"]
[ECO "C60"]
[WhiteElo "2097"]
[BlackElo "1822"]
[Annotator "NA"]
[PlyCount "128"]
[EventDate "2019.08.02"]
[EventType "swiss"]
[EventCountry "SVK"]
[SourceTitle "playchess.com"]
[Source "ChessBase"]
[SourceQuality "1"]
[TimeControl "40/5400+30:1800+30"]

1. e4 {[%emt 0:00:00]} e5 {[%emt 0:00:00]} 2. Nf3 {[%emt 0:00:00]} Nc6 {[%emt 0:00:08]} 3. Bb5 {[%emt 0:00:00]} g6 {[%emt 0:00:33]} 4. c3 {[%emt 0:00:19]} a6 {[%emt 0:00:18]} 5. Ba4 {[%emt 0:01:55]} b5 {[%emt 0:00:27]} 6. Bc2 {[%emt 0:01:02]} Bg7 {[%emt 0:01:01]} 7. d4 {[%emt 0:03:51]} exd4 {[%emt 0:00:58]} 8. cxd4 {[%emt 0:00:06]} d5 {[%emt 0:01:25]} 9. exd5 {[%emt 0:04:34]} Qxd5 {[%emt 0:01:18]} 10. Nc3 {[%emt 0:01:41]} Qd8 {[%emt 0:05:22]} 11. Be4 {[%emt 0:12:49]} Bb7 {[%emt 0:03:29]} 12. O-O {[%emt 0:02:14]} Nge7 {[%emt 0:03:41]} 13. Bg5 {[%emt 0:06:24]} f6 {[%emt 0:02:26]} 14. Bh4 {[%emt 0:03:50]} g5 {[%emt 0:04:17]} 15. Bxg5 {[%emt 0:22:25]} fxg5 {[%emt 0:02:23]} 16. Nxg5 {[%emt 0:00:40]} Qd6 {[%emt 0:05:10]} 17. Qh5+ {[%emt 0:01:46]} Ng6 {[%emt 0:00:25]} 18. Nxh7 {[%emt 0:05:12]} O-O-O {[%emt 0:07:36]} 19. Qxg6 {[%emt 0:02:29]} Qxg6 {[%emt 0:02:29]} 20. Bxg6 {[%emt 0:00:02]} Ne7 {[%emt 0:01:40]} 21. Bc2 {[%emt 0:02:08]} Bxd4 {[%emt 0:01:44]} 22. Rad1 {[%emt 0:09:33]} Rdg8 {[%emt 0:02:26]} 23. Ne4 {[%emt 0:05:26]} Bxb2 {[%emt 0:10:23]} 24. Nhg5 {[%emt 0:00:35]} Rh5 {[%emt 0:06:11]} 25. f4 {[%emt 0:01:16]} Rgh8 {[%emt 0:02:27]} 26. h3 {[%emt 0:00:51]} Nd5 {[%emt 0:00:55]} 27. Ng3 {[%emt 0:03:26]} Rh4 {[%emt 0:01:09]} 28. Nf5 {[%emt 0:00:25]} Rxf4 {[%emt 0:07:29]} 29. Ne7+ {[%emt 0:00:46]} Kb8 {[%emt 0:00:49]} 30. Nxd5 {[%emt 0:01:04]} Bd4+ {[%emt 0:00:12]} 31. Rxd4 {[%emt 0:02:31]} Rxd4 {[%emt 0:00:04]} 32. Ne3 {[%emt 0:04:40]} Rd2 {[%emt 0:01:16]} 33. Rf2 {[%emt 0:00:32]} Rxf2 {[%emt 0:02:30]} 34. Kxf2 {[%emt 0:00:01]} c5 {[%emt 0:00:08]} 35. g4 {[%emt 0:00:58]} a5 {[%emt 0:01:52]} 36. Kg3 {[%emt 0:00:38]} a4 {[%emt 0:01:00]} 37. h4 {[%emt 0:00:15]} Re8 {[%emt 0:00:50]} 38. Kf4 {[%emt 0:00:43]} a3 {[%emt 0:00:27]} 39. h5 {[%emt 0:00:55]} Rf8+ {[%emt 0:01:32]} 40. Kg3 {[%emt 0:00:00]} Re8 {[%emt 0:00:00]} 41. Kf2 {[%emt 0:08:40]} Rf8+ {[%emt 0:03:36]} 42. Ke2 {[%emt 0:01:15]} Re8 {[%emt 0:01:21]} 43. Bg6 {[%emt 0:10:02]} Rg8 {[%emt 0:01:40]} 44. Ne6 {[%emt 0:00:55]} c4 {[%emt 0:00:34]} 45. Bf7 {[%emt 0:01:02]} Rh8 {[%emt 0:00:48]} 46. g5 {[%emt 0:06:11]} b4 {[%emt 0:00:20]} 47. g6 {[%emt 0:01:27]} Rxh5 {[%emt 0:03:04]} 48. g7 {[%emt 0:00:45]} Rh2+ {[%emt 0:00:02]} 49. Kf1 {[%emt 0:01:02]} b3 {[%emt 0:02:12]} 50. g8=Q+ {[%emt 0:00:12]} Ka7 {[%emt 0:00:24]} 51. Nd1 {[%emt 0:05:09]} Rh1+ {[%emt 0:04:00]} 52. Ke2 {[%emt 0:00:01]} Rh2+ {[%emt 0:02:58]} 53. Ke1 {[%emt 0:00:42]} Rh1+ {[%emt 0:01:48]} 54. Ke2 {[%emt 0:00:22]} Rh2+ {[%emt 0:00:07]} 55. Nf2 {[%emt 0:00:14]} c3 {[%emt 0:04:47]} 56. Qg1 {[%emt 0:01:24]} Rg2 {[%emt 0:00:08]} 57. Qc1 {[%emt 0:00:28]} b2 {[%emt 0:03:03]} 58. Qb1 {[%emt 0:00:25]} Rg3 {[%emt 0:07:00]} 59. Nd4 {[%emt 0:00:35]} Ba6+ {[%emt 0:00:14]} 60. Nd3 {[%emt 0:00:31]} Bxd3+ {[%emt 0:00:44]} 61. Qxd3 {[%emt 0:00:31]} Rxd3 {[%emt 0:00:16]} 62. Kxd3 {[%emt 0:00:17]} b1=Q+ {[%emt 0:00:27]} 63. Kxc3 {[%emt 0:00:04]} Qa1+ {[%emt 0:03:06]} 64. Kd3 {[%emt 0:00:06]} Qf1+ {[%emt 0:00:08]} 0-1

[Event "EYCC Open-U14 2019"]
[Site "Bratislava"]
[Date "2019.08.07"]
[Round "6.48"]
[White "Czernek, Tymon"]
[Black "Ruiz Buendia, Miguel"]
[Result "1-0"]
[ECO "B50"]
[WhiteElo "2003"]
[BlackElo "1806"]
[Annotator "NA"]
[PlyCount "53"]
[EventDate "2019.08.02"]
[EventType "swiss"]
[EventCountry "SVK"]
[SourceTitle "playchess.com"]
[Source "ChessBase"]
[SourceQuality "1"]
[TimeControl "40/5400+30:1800+30"]

1. e4 {[%emt 0:00:00]} c5 {[%emt 0:00:00]} 2. Nf3 {[%emt 0:00:00]} d6 {[%emt 0:00:00]} 3. d3 {[%emt 0:00:00]} Nc6 {[%emt 0:00:00]} 4. g3 {[%emt 0:00:00]} g6 {[%emt 0:00:00]} 5. Bg2 {[%emt 0:00:00]} Bg7 {[%emt 0:00:00]} 6. O-O {[%emt 0:00:00]} e5 {[%emt 0:00:00]} 7. c3 {[%emt 0:00:24]} Nge7 {[%emt 0:00:00]} 8. a3 {[%emt 0:00:42]} O-O {[%emt 0:01:02]} 9. b4 {[%emt 0:01:03]} a6 {[%emt 0:01:57]} 10. Be3 {[%emt 0:01:52]} b6 {[%emt 0:02:16]} 11. Nbd2 {[%emt 0:01:29]} h6 {[%emt 0:02:01]} 12. Nb3 {[%emt 0:01:59]} Be6 {[%emt 0:02:17]} 13. Rb1 {[%emt 0:06:01]} c4 {[%emt 0:05:55]} 14. dxc4 {[%emt 0:02:33]} Bxc4 {[%emt 0:00:22]} 15. Re1 {[%emt 0:00:09]} d5 {[%emt 0:02:41]} 16. Nfd2 {[%emt 0:15:34]} Bd3 {[%emt 0:00:39]} 17. exd5 {[%emt 0:01:19]} Bxb1 {[%emt 0:02:30]} 18. Nxb1 {[%emt 0:00:20]} Na7 {[%emt 0:01:54]} 19. d6 {[%emt 0:00:48]} Nec6 {[%emt 0:00:56]} 20. c4 {[%emt 0:00:47]} f5 {[%emt 0:07:22]} 21. Bxc6 {[%emt 0:00:27]} Nxc6 {[%emt 0:00:01]} 22. Qd5+ {[%emt 0:00:07]} Kh7 {[%emt 0:00:12]} 23. Qxc6 {[%emt 0:00:04]} Rc8 {[%emt 0:01:59]} 24. Qxb6 {[%emt 0:00:26]} Rxc4 {[%emt 0:02:19]} 25. Qxa6 {[%emt 0:02:12]} Qc8 {[%emt 0:01:14]} 26. Qxc8 {[%emt 0:00:15]} Rcxc8 {[%emt 0:00:09]} 27. Bb6 {[%emt 0:00:13]} 1-0

[Event "EYCC Open-U14 2019"]
[Site "Bratislava"]
[Date "2019.08.08"]
[Round "7.1"]
[White "Makoveev, Ilya"]
[Black "Kostolansky, Sebastian Lukas"]
[Result "1/2-1/2"]
[ECO "B06"]
[WhiteElo "2288"]
[BlackElo "2406"]
[Annotator "NA"]
[PlyCount "80"]
[EventDate "2019.08.02"]
[EventType "swiss"]
[EventCountry "SVK"]
[SourceTitle "playchess.com"]
[Source "ChessBase"]
[SourceQuality "1"]
[TimeControl "40/5400+30:1800+30"]

1. e4 {[%emt 0:00:00]} g6 {[%emt 0:00:00]} 2. d4 {[%emt 0:00:00]} Bg7 {[%emt 0:00:00]} 3. Nc3 {[%emt 0:00:30]} d6 {[%emt 0:01:03]} 4. g3 {[%emt 0:01:00]} Nf6 {[%emt 0:01:28]} 5. Bg2 {[%emt 0:00:20]} O-O {[%emt 0:00:08]} 6. Nge2 {[%emt 0:00:10]} c6 {[%emt 0:09:24]} 7. O-O {[%emt 0:01:30]} Nbd7 {[%emt 0:02:24]} 8. a4 {[%emt 0:02:30]} Qc7 {[%emt 0:02:40]} 9. h3 {[%emt 0:02:30]} b6 {[%emt 0:02:16]} 10. Be3 {[%emt 0:06:30]} Bb7 {[%emt 0:08:50]} 11. g4 {[%emt 0:02:30]} e5 {[%emt 0:24:04]} 12. f4 {[%emt 0:02:30]} exd4 {[%emt 0:01:48]} 13. Bxd4 {[%emt 0:01:00]} Rad8 {[%emt 0:09:07]} 14. Ng3 {[%emt 0:16:22]} d5 {[%emt 0:05:02]} 15. e5 {[%emt 0:07:20]} Ne8 {[%emt 0:04:20]} 16. g5 {[%emt 0:19:15]} Nc5 {[%emt 0:02:51]} 17. Bf2 {[%emt 0:05:08]} d4 {[%emt 0:06:35]} 18. Nce4 {[%emt 0:02:13]} Nxe4 {[%emt 0:00:36]} 19. Nxe4 {[%emt 0:00:28]} c5 {[%emt 0:00:42]} 20. Bg3 {[%emt 0:04:06]} Bd5 {[%emt 0:04:51]} 21. Qe2 {[%emt 0:02:32]} Qd7 {[%emt 0:05:20]} 22. b3 {[%emt 0:04:30]} Be6 {[%emt 0:01:13]} 23. Rad1 {[%emt 0:10:47]} Nc7 {[%emt 0:01:13]} 24. c4 {[%emt 0:00:39]} Bxh3 {[%emt 0:04:51]} 25. Bxh3 {[%emt 0:01:45]} Qxh3 {[%emt 0:00:02]} 26. Qf3 {[%emt 0:00:38]} Qd7 {[%emt 0:01:15]} 27. Kg2 {[%emt 0:00:41]} Rfe8 {[%emt 0:00:53]} 28. Rh1 {[%emt 0:00:21]} Ne6 {[%emt 0:00:25]} 29. Rd3 {[%emt 0:01:40]} Nf8 {[%emt 0:00:28]} 30. Bf2 {[%emt 0:01:29]} Re6 {[%emt 0:00:30]} 31. Nc3 {[%emt 0:01:53]} a6 {[%emt 0:00:37]} 32. Bg3 {[%emt 0:01:34]} Ree8 {[%emt 0:00:31]} 33. Ne4 {[%emt 0:00:44]} Re7 {[%emt 0:00:27]} 34. a5 {[%emt 0:00:47]} Qb7 {[%emt 0:00:30]} 35. Bf2 {[%emt 0:00:47]} Rc7 {[%emt 0:00:28]} 36. axb6 {[%emt 0:00:39]} Qxb6 {[%emt 0:00:10]} 37. Nc3 {[%emt 0:00:36]} Rcd7 {[%emt 0:00:53]} 38. Ne4 {[%emt 0:00:17]} Rc7 {[%emt 0:00:28]} 39. Nc3 {[%emt 0:00:05]} Rcd7 {[%emt 0:00:10]} 40. Ne4 {[%emt 0:00:00]} Rc7 {[%emt 0:00:00]} 1/2-1/2

[Event "EYCC Open-U14 2019"]
[Site "Bratislava"]
[Date "2019.08.08"]
[Round "7.2"]
[White "Antonica, Dragos-Andrei"]
[Black "Tsvetkov, Andrey"]
[Result "1/2-1/2"]
[ECO "D04"]
[WhiteElo "2124"]
[BlackElo "2324"]
[Annotator "NA"]
[PlyCount "93"]
[EventDate "2019.08.02"]
[EventType "swiss"]
[EventCountry "SVK"]
[SourceTitle "playchess.com"]
[Source "ChessBase"]
[SourceQuality "1"]
[TimeControl "40/5400+30:1800+30"]

1. d4 {[%emt 0:00:00]} d5 {[%emt 0:00:00]} 2. Nf3 {[%emt 0:00:00]} Nf6 {[%emt 0:00:00]} 3. e3 {[%emt 0:00:07]} c5 {[%emt 0:00:02]} 4. b3 {[%emt 0:02:51]} cxd4 {[%emt 0:00:57]} 5. exd4 {[%emt 0:01:30]} Bg4 {[%emt 0:00:35]} 6. Bd3 {[%emt 0:02:16]} Nc6 {[%emt 0:01:38]} 7. Bb2 {[%emt 0:06:42]} e6 {[%emt 0:01:04]} 8. Nbd2 {[%emt 0:00:37]} Be7 {[%emt 0:01:28]} 9. O-O {[%emt 0:00:33]} O-O {[%emt 0:00:07]} 10. a3 {[%emt 0:10:43]} Rc8 {[%emt 0:02:52]} 11. Rc1 {[%emt 0:10:17]} Re8 {[%emt 0:16:03]} 12. Qe1 {[%emt 0:14:39]} Bf8 {[%emt 0:09:00]} 13. Qe3 {[%emt 0:22:40]} Bh5 {[%emt 0:04:55]} 14. Ne5 {[%emt 0:05:21]} Nxe5 {[%emt 0:02:58]} 15. dxe5 {[%emt 0:00:58]} Nd7 {[%emt 0:00:06]} 16. c4 {[%emt 0:04:25]} Bc5 {[%emt 0:12:16]} 17. Qg3 {[%emt 0:04:01]} Nf8 {[%emt 0:02:52]} 18. b4 {[%emt 0:05:27]} Be7 {[%emt 0:00:36]} 19. c5 {[%emt 0:00:56]} a6 {[%emt 0:01:22]} 20. Bd4 {[%emt 0:00:39]} Bg6 {[%emt 0:00:55]} 21. f4 {[%emt 0:01:26]} Qd7 {[%emt 0:01:47]} 22. Qe3 {[%emt 0:00:46]} Bxd3 {[%emt 0:04:57]} 23. Qxd3 {[%emt 0:00:01]} f5 {[%emt 0:00:00]} 24. Be3 {[%emt 0:03:15]} Kf7 {[%emt 0:06:55]} 25. Nf3 {[%emt 0:00:39]} Qa4 {[%emt 0:01:03]} 26. Nd4 {[%emt 0:00:57]} Red8 {[%emt 0:00:59]} 27. Qb3 {[%emt 0:00:43]} Qxb3 {[%emt 0:01:03]} 28. Nxb3 {[%emt 0:00:01]} Nd7 {[%emt 0:00:37]} 29. Na5 {[%emt 0:01:02]} Rc7 {[%emt 0:00:10]} 30. Bd4 {[%emt 0:00:38]} Rdc8 {[%emt 0:02:54]} 31. Rcd1 {[%emt 0:00:11]} Nb8 {[%emt 0:00:41]} 32. Nb3 {[%emt 0:00:40]} Nc6 {[%emt 0:00:34]} 33. Be3 {[%emt 0:00:31]} a5 {[%emt 0:04:15]} 34. Bd2 {[%emt 0:00:05]} a4 {[%emt 0:01:00]} 35. Nc1 {[%emt 0:00:35]} Nd4 {[%emt 0:00:22]} 36. Nd3 {[%emt 0:00:52]} Nb5 {[%emt 0:03:10]} 37. Ra1 {[%emt 0:00:44]} Rc6 {[%emt 0:00:49]} 38. Rfc1 {[%emt 0:00:31]} Nd4 39. Rcb1 {[%emt 0:00:21]} Nb3 {[%emt 0:03:12]} 40. Ra2 {[%emt 0:00:00]} b6 {[%emt 0:00:00]} 41. cxb6 {[%emt 0:05:36]} Rxb6 {[%emt 0:00:29]} 42. Kf2 {[%emt 0:13:56]} Rc4 {[%emt 0:07:11]} 43. Ke2 {[%emt 0:02:15]} Rbc6 {[%emt 0:00:51]} 44. Kd1 {[%emt 0:04:50]} Rd4 {[%emt 0:02:28]} 45. Ke2 {[%emt 0:00:04]} Re4+ {[%emt 0:00:17]} 46. Kd1 {[%emt 0:00:29]} Rcc4 {[%emt 0:02:42]} 47. Rxb3 {[%emt 0:00:16]} 1/2-1/2

[Event "EYCC Open-U14 2019"]
[Site "Bratislava"]
[Date "2019.08.08"]
[Round "7.3"]
[White "Popov, Konstantin"]
[Black "Biletskiy, Danylo"]
[Result "1-0"]
[ECO "A67"]
[WhiteElo "2367"]
[BlackElo "2105"]
[Annotator "NA"]
[PlyCount "85"]
[EventDate "2019.08.02"]
[EventType "swiss"]
[EventCountry "SVK"]
[SourceTitle "playchess.com"]
[Source "ChessBase"]
[SourceQuality "1"]
[TimeControl "40/5400+30:1800+30"]

1. d4 {[%emt 0:00:00]} Nf6 {[%emt 0:00:17]} 2. c4 {[%emt 0:00:29]} c5 {[%emt 0:02:02]} 3. d5 {[%emt 0:00:22]} e6 {[%emt 0:00:15]} 4. Nc3 {[%emt 0:00:45]} exd5 {[%emt 0:00:17]} 5. cxd5 {[%emt 0:00:06]} g6 {[%emt 0:00:21]} 6. e4 {[%emt 0:00:14]} d6 {[%emt 0:00:38]} 7. f4 {[%emt 0:00:51]} Bg7 {[%emt 0:02:35]} 8. Bb5+ {[%emt 0:00:32]} Bd7 {[%emt 0:02:21]} 9. e5 {[%emt 0:04:25]} Qe7 {[%emt 0:14:21]} 10. Nf3 {[%emt 0:19:06]} dxe5 {[%emt 0:25:25]} 11. fxe5 {[%emt 0:06:26]} Ng4 {[%emt 0:01:19]} 12. d6 {[%emt 0:22:22]} Qd8 {[%emt 0:02:45]} 13. O-O {[%emt 0:06:50]} O-O {[%emt 0:01:43]} 14. Bg5 {[%emt 0:02:23]} Qe8 {[%emt 0:13:44]} 15. Bxd7 {[%emt 0:07:52]} Qxd7 {[%emt 0:00:58]} 16. h3 {[%emt 0:05:43]} Nxe5 {[%emt 0:02:29]} 17. Nd5 {[%emt 0:04:30]} Nbc6 {[%emt 0:05:39]} 18. Nf6+ {[%emt 0:07:43]} Bxf6 {[%emt 0:00:02]} 19. Bxf6 {[%emt 0:00:03]} Nxf3+ {[%emt 0:04:50]} 20. Rxf3 {[%emt 0:05:04]} h6 {[%emt 0:07:07]} 21. Qd2 {[%emt 0:01:22]} Kh7 {[%emt 0:00:07]} 22. Rf4 {[%emt 0:02:40]} Nd4 {[%emt 0:06:28]} 23. Bxd4 {[%emt 0:00:41]} cxd4 {[%emt 0:00:02]} 24. Rxd4 {[%emt 0:00:13]} g5 {[%emt 0:02:23]} 25. h4 {[%emt 0:00:46]} Rg8 {[%emt 0:01:11]} 26. Re1 {[%emt 0:00:33]} Rae8 {[%emt 0:00:16]} 27. Rxe8 {[%emt 0:00:30]} Rxe8 {[%emt 0:00:02]} 28. hxg5 {[%emt 0:00:13]} Re6 {[%emt 0:00:26]} 29. gxh6 {[%emt 0:00:57]} Rxh6 {[%emt 0:00:16]} 30. Qg5 {[%emt 0:00:36]} a6 {[%emt 0:01:44]} 31. Qd2 {[%emt 0:00:38]} Kg7 {[%emt 0:00:50]} 32. Qg5+ {[%emt 0:00:26]} Kh7 {[%emt 0:00:12]} 33. Rg4 {[%emt 0:00:26]} Rg6 {[%emt 0:00:20]} 34. Rh4+ {[%emt 0:00:08]} Kg7 {[%emt 0:00:52]} 35. Qe5+ {[%emt 0:00:48]} f6 {[%emt 0:00:59]} 36. Qh5 {[%emt 0:00:08]} Kf7 {[%emt 0:00:44]} 37. Qh7+ {[%emt 0:00:46]} Rg7 {[%emt 0:00:02]} 38. Qh5+ {[%emt 0:00:05]} Kf8 {[%emt 0:01:26]} 39. Qd5 {[%emt 0:00:35]} Rg8 {[%emt 0:01:00]} 40. Rh6 {[%emt 0:00:00]} Qd8 {[%emt 0:00:00]} 41. Qf5 {[%emt 0:04:14]} Kg7 {[%emt 0:04:16]} 42. Rh7+ {[%emt 0:00:27]} Kf8 {[%emt 0:00:02]} 43. Qe6 {[%emt 0:00:19]} 1-0

[Event "EYCC Open-U14 2019"]
[Site "Bratislava"]
[Date "2019.08.08"]
[Round "7.4"]
[White "Chyzy, Jakub"]
[Black "Mitusov, Semen"]
[Result "1/2-1/2"]
[ECO "C47"]
[WhiteElo "2093"]
[BlackElo "2199"]
[Annotator "NA"]
[PlyCount "89"]
[EventDate "2019.08.02"]
[EventType "swiss"]
[EventCountry "SVK"]
[SourceTitle "playchess.com"]
[Source "ChessBase"]
[SourceQuality "1"]
[TimeControl "40/5400+30:1800+30"]

1. e4 {[%emt 0:00:00]} e5 {[%emt 0:00:00]} 2. Nf3 {[%emt 0:00:00]} Nc6 {[%emt 0:00:26]} 3. Nc3 {[%emt 0:00:00]} Nf6 {[%emt 0:00:28]} 4. d4 {[%emt 0:00:00]} exd4 {[%emt 0:00:58]} 5. Nxd4 {[%emt 0:00:00]} Bb4 {[%emt 0:00:12]} 6. Nxc6 {[%emt 0:00:00]} bxc6 {[%emt 0:00:04]} 7. Bd3 {[%emt 0:00:00]} d5 {[%emt 0:00:03]} 8. exd5 {[%emt 0:00:11]} cxd5 {[%emt 0:00:06]} 9. O-O {[%emt 0:00:04]} O-O {[%emt 0:01:59]} 10. Bg5 {[%emt 0:00:05]} c6 {[%emt 0:00:05]} 11. Qf3 {[%emt 0:00:05]} Bd6 {[%emt 0:01:19]} 12. h3 {[%emt 0:00:19]} Rb8 {[%emt 0:00:11]} 13. Rab1 {[%emt 0:00:06]} h6 {[%emt 0:01:07]} 14. Bf4 {[%emt 0:00:06]} Rb4 {[%emt 0:00:42]} 15. Bd2 {[%emt 0:16:09]} Rh4 {[%emt 0:12:35]} 16. Rfe1 {[%emt 0:26:16]} Bc7 {[%emt 0:21:19]} 17. Bf1 {[%emt 0:15:27]} Rh5 {[%emt 0:12:52]} 18. Bf4 {[%emt 0:08:18]} Rf5 {[%emt 0:04:08]} 19. Bxc7 {[%emt 0:00:19]} Qxc7 {[%emt 0:00:09]} 20. Qg3 {[%emt 0:05:57]} Qxg3 {[%emt 0:05:27]} 21. fxg3 {[%emt 0:00:04]} Re8 {[%emt 0:00:11]} 22. Rxe8+ {[%emt 0:03:47]} Nxe8 {[%emt 0:00:03]} 23. Re1 {[%emt 0:06:36]} Kf8 {[%emt 0:00:51]} 24. Bd3 {[%emt 0:01:21]} Rf6 {[%emt 0:02:33]} 25. Na4 {[%emt 0:03:26]} Re6 {[%emt 0:05:41]} 26. Rf1 {[%emt 0:05:16]} Rf6 {[%emt 0:02:42]} 27. Rb1 {[%emt 0:06:17]} Ke7 {[%emt 0:04:51]} 28. b4 {[%emt 0:00:58]} Nc7 {[%emt 0:01:49]} 29. Rb3 {[%emt 0:02:08]} Kd6 {[%emt 0:05:09]} 30. Ra3 {[%emt 0:01:00]} Re6 {[%emt 0:01:14]} 31. Nc5 {[%emt 0:00:34]} Re1+ {[%emt 0:00:31]} 32. Kf2 {[%emt 0:00:26]} Rb1 {[%emt 0:00:06]} 33. c3 {[%emt 0:00:29]} Rc1 {[%emt 0:02:15]} 34. Ke3 {[%emt 0:00:30]} Re1+ {[%emt 0:02:14]} 35. Kf2 {[%emt 0:00:18]} Rc1 {[%emt 0:00:01]} 36. Ke2 {[%emt 0:00:13]} Rg1 {[%emt 0:00:19]} 37. Kf2 {[%emt 0:00:50]} Rc1 {[%emt 0:00:05]} 38. Ke2 {[%emt 0:00:13]} Rg1 {[%emt 0:01:14]} 39. Kf3 {[%emt 0:00:00]} Rc1 {[%emt 0:02:19]} 40. Rxa7 {[%emt 0:00:00]} Rxc3 {[%emt 0:00:00]} 41. Ke2 {[%emt 0:02:04]} Rc1 {[%emt 0:03:11]} 42. Nb3 {[%emt 0:00:54]} Rg1 {[%emt 0:01:25]} 43. Kf2 {[%emt 0:01:10]} Rd1 {[%emt 0:01:11]} 44. Bc2 {[%emt 0:00:41]} Rh1 {[%emt 0:00:09]} 45. Bd3 {[%emt 0:24:50]} 1/2-1/2

[Event "EYCC Open-U14 2019"]
[Site "Bratislava"]
[Date "2019.08.08"]
[Round "7.5"]
[White "Tadic, Stefan"]
[Black "Borhy, Marcell"]
[Result "1-0"]
[ECO "C41"]
[WhiteElo "2262"]
[BlackElo "2382"]
[Annotator "NA"]
[PlyCount "65"]
[EventDate "2019.08.02"]
[EventType "swiss"]
[EventCountry "SVK"]
[SourceTitle "playchess.com"]
[Source "ChessBase"]
[SourceQuality "1"]
[TimeControl "40/5400+30:1800+30"]

1. e4 {[%emt 0:00:00]} d6 {[%emt 0:00:00]} 2. d4 {[%emt 0:00:00]} Nf6 {[%emt 0:00:00]} 3. Nc3 {[%emt 0:00:00]} e5 {[%emt 0:00:00]} 4. Nf3 {[%emt 0:00:00]} Nbd7 {[%emt 0:00:00]} 5. g4 {[%emt 0:00:00]} Nxg4 {[%emt 0:01:18]} 6. Rg1 {[%emt 0:00:00]} Ngf6 {[%emt 0:00:09]} 7. Bc4 {[%emt 0:00:10]} h6 {[%emt 0:01:48]} 8. Be3 {[%emt 0:00:36]} c6 {[%emt 0:00:12]} 9. dxe5 {[%emt 0:00:09]} dxe5 {[%emt 0:00:52]} 10. Qd3 {[%emt 0:00:09]} b5 {[%emt 0:03:11]} 11. Bb3 {[%emt 0:00:06]} Qa5 {[%emt 0:02:51]} 12. O-O-O {[%emt 0:00:10]} Ba6 {[%emt 0:00:13]} 13. Nb1 {[%emt 0:01:18]} b4 {[%emt 0:20:01]} 14. Bxf7+ {[%emt 0:29:38]} Kxf7 {[%emt 0:04:45]} 15. Qb3+ {[%emt 0:00:22]} Nd5 {[%emt 0:22:55]} 16. exd5 {[%emt 0:13:48]} c5 {[%emt 0:00:05]} 17. Nbd2 {[%emt 0:00:52]} Bd6 {[%emt 0:02:40]} 18. Nc4 {[%emt 0:09:58]} Bxc4 {[%emt 0:01:26]} 19. Qxc4 {[%emt 0:00:04]} Nf6 {[%emt 0:00:12]} 20. Nh4 {[%emt 0:03:45]} Rad8 {[%emt 0:05:04]} 21. Nf5 {[%emt 0:02:33]} Rhg8 {[%emt 0:00:19]} 22. Kb1 {[%emt 0:04:02]} Qc7 {[%emt 0:01:20]} 23. b3 {[%emt 0:11:18]} Rc8 {[%emt 0:01:24]} 24. Qa6 {[%emt 0:01:15]} Rcd8 {[%emt 0:14:21]} 25. f3 {[%emt 0:01:21]} Qd7 {[%emt 0:05:12]} 26. Qd3 {[%emt 0:01:56]} Kf8 {[%emt 0:03:28]} 27. Rg6 {[%emt 0:02:19]} Bb8 {[%emt 0:02:41]} 28. Bxc5+ {[%emt 0:05:30]} Kf7 {[%emt 0:00:25]} 29. Rdg1 {[%emt 0:00:36]} Nh5 {[%emt 0:01:17]} 30. d6 {[%emt 0:05:23]} Kf8 {[%emt 0:00:34]} 31. Nxh6 {[%emt 0:00:33]} Nf4 {[%emt 0:00:16]} 32. Rf6+ {[%emt 0:00:14]} Ke8 {[%emt 0:00:14]} 33. Qh7 {[%emt 0:00:28]} 1-0